[Event "26th Hit Open-A 2022"]
[Site "Nova Gorica"]
[Date "2022.09.18"]
[Round "5.36"]
[White "Charaus, Florian"]
[Black "Guid, Taja"]
[Result "1-0"]
[ECO "D31"]
[WhiteElo "1993"]
[BlackElo "1511"]
[Annotator "TA"]
[PlyCount "111"]
[EventDate "2022.09.16"]
[EventType "swiss"]
[EventCountry "SLO"]
[SourceTitle "playchess.com"]
[Source "ChessBase"]
[SourceQuality "1"]
[TimeControl "5400+30"]

{[%evp 13,111,3,20,-8,-8,-28,-21,-53,0,-7,-7,-29,0,-25,-18,-10,-7,-19,-20,-22,80,43,69,0,0,-17,0,-18,0,-21,-21,-44,0,-80,1,1,1,4,69,28,62,0,66,66,66,40,72,76,137,134,157,157,163,130,154,168,311,297,300,287,311,302,300,274,289,281,410,397,594,412,397,389,922,563,558,541,537,538,584,577,559,548,537,550,1050,1041,1016,1026,1275,1337,1283,1222,2784,2828,29977,29977,29981,29982,29984,29985]} 1. c4 {[%emt 0:00:14]} e6 {[%emt 0:00:36]} 2. d4 {[%emt 0:00:05]} d5 {[%emt 0:00:06]} 3. cxd5 {[%emt 0:00:07]} exd5 {[%emt 0:00:05]} 4. Nc3 {[%emt 0:00:04]} c6 {[%emt 0:01:21]} 5. Qc2 {[%emt 0:00:07]} Bd6 {[%emt 0:00:44]} 6. Nf3 {[%emt 0:00:07]} Ne7 {[%emt 0:00:44]} 7. Bg5 {[%emt 0:00:13]} f6 {[%emt 0:00:30]} 8. Bh4 {[%emt 0:00:10] D31: Queen's Gambit Declined: Semi-Slav without ...Nf6 (+ Marshall Gambit and Noteboom) and Exchange Variation lines without ...Nf6.} Bf5 {[%emt 0:00:44]} 9. Qb3 {[%emt 0:00:41]} Qb6 {[%emt 0:02:36]} 10. e3 {[%emt 0:00:34] The position is equal.} Qxb3 {[%emt 0:07:56]} (10... Na6 $15) 11. axb3 $11 {[%emt 0:00:05] [#]} Nd7 $146 {[%emt 0:00:56]} ({Predecessor:} 11... Bc2 12. Nd2 Nf5 13. Bg3 Nxg3 14. hxg3 Nd7 15. Be2 O-O 16. Rc1 Bf5 17. O-O Rfe8 {0-1 (33) Zarandieta Lopera,V (1989)-Arizmendi Martinez,J (2513) Linares 2017}) 12. Be2 {[%emt 0:00:12]} O-O {[%emt 0:00:31]} 13. O-O {[%emt 0:00:14]} Rfe8 {[%emt 0:01:41]} 14. Bg3 {[%emt 0:00:16]} Nc8 {[%emt 0:02:04]} 15. Rfc1 {[%emt 0:00:59]} Bxg3 {[%emt 0:02:00]} 16. hxg3 {[%emt 0:00:05]} h6 {[%emt 0:00:50]} (16... Nd6 $11) 17. Nh4 {[%emt 0:00:16]} Bh7 {[%emt 0:02:42]} 18. Bg4 {[%emt 0:01:41] White is more active.} ({White should try} 18. b4 $1 $14) 18... Ndb6 {[%emt 0:01:09]} 19. Na4 {[%emt 0:01:25]} Nxa4 {[%emt 0:01:03]} 20. bxa4 {[%emt 0:00:07]} Nd6 {[%emt 0:00:31]} 21. b4 {[%emt 0:01:53][%cal Ob4b5]} a6 {[%emt 0:24:48]} 22. Be2 {[%emt 0:01:50]} Rec8 {[%emt 0:02:51]} 23. Nf3 {[%emt 0:02:50] [#]} (23. a5 $11 {remains equal.}) 23... Kf7 {[%emt 0:02:22]} (23... a5 $1 $17 24. bxa5 Rxa5) 24. Nd2 {[%emt 0:00:13]} Bf5 {[%emt 0:03:24]} 25. Nb3 {[%emt 0:00:27]} b6 {[%emt 0:00:40]} (25... Rc7 $11) 26. Nd2 {[%emt 0:01:07]} Ke7 {[%emt 0:01:49]} 27. Rc3 {[%emt 0:00:13]} (27. a5 $14) 27... Ne4 {[%emt 0:04:59]} ({Better is} 27... a5 $11) 28. Nxe4 $14 {[%emt 0:00:11]} dxe4 {[%emt 0:00:16]} 29. Rac1 {[%emt 0:00:11]} Kd6 {[%emt 0:00:58]} 30. a5 {[%emt 0:03:39] White stays focused until the end.} b5 {[%emt 0:01:02]} ({Black should play} 30... bxa5 31. bxa5 Be6) 31. f3 $16 {[%emt 0:00:04][%cal Bf2f3,Bf3e4,Be4e5][%mdl 32]} Ra7 {[%emt 0:07:04]} 32. Rc5 {[%emt 0:02:14]} Bg6 {[%emt 0:01:59]} 33. Bd1 {[%emt 0:07:08]} Rac7 {[%emt 0:01:36]} 34. Bc2 {[%emt 0:00:30]} f5 {[%emt 0:04:58] [#]} (34... Re7 {was called for.} 35. g4 Kc7) 35. g4 $1 $18 {[%emt 0:00:11]} fxg4 {[%emt 0:00:25]} 36. fxe4 {[%emt 0:00:08] aiming for e5+.} Bf7 {[%emt 0:01:17]} 37. e5+ {[%emt 0:02:14]} Kd7 {[%emt 0:02:22]} 38. Rf1 {[%emt 0:01:43]} Be6 {[%emt 0:00:53]} 39. Bg6 {[%emt 0:01:11]} Ke7 {[%emt 0:01:22]} (39... Rh8 {is a better defense.} 40. Rfc1 Bd5 41. Bf5+ Kd8) 40. e4 {[%emt 0:02:10]} Bc4 {[%emt 0:01:05]} (40... Kd7 $142 41. Rfc1 Bc4) 41. Rf4 {[%emt 0:00:17] d5 is the strong threat.} Be6 {[%emt 0:02:40]} 42. Kf2 {[%emt 0:00:21]} Bc4 $2 {[%emt 0:04:36]} (42... h5 43. Ke3 h4) 43. Kg3 {[%emt 0:00:18] Black must now prevent d5.} Be6 {[%emt 0:00:27]} 44. Kh4 {[%emt 0:01:16]} Kd8 {[%emt 0:01:45]} 45. g3 {[%emt 0:03:30]} Ke7 {[%emt 0:01:10]} 46. Kh5 {[%emt 0:00:17]} Kd8 {[%emt 0:00:37]} 47. Bf5 {[%emt 0:00:50]} Ke7 {[%emt 0:03:21]} 48. Kxg4 {[%emt 0:00:08]} g5 {[%emt 0:00:30]} 49. Rf2 {[%emt 0:00:37]} Bxf5+ {[%emt 0:01:17]} 50. Rxf5 {[%emt 0:00:56][%mdl 4096] Endgame KRR-KRR} Kd7 {[%emt 0:00:59]} 51. Rf6 {[%emt 0:00:11]} Rh8 {[%emt 0:00:17]} 52. Rd6+ {[%emt 0:00:47]} Kc8 {[%emt 0:00:24]} 53. Rdxc6 {[%emt 0:00:10]} Rxc6 {[%emt 0:00:12]} 54. Rxc6+ {[%emt 0:00:05] White mates.} Kb7 {[%emt 0:00:03]} 55. d5 {[%emt 0:00:06]} Re8 {[%emt 0:00:25]} 56. e6 {[%emt 0:01:16] Weighted Error Value: White=0.28 (precise) /Black=0.41} 1-0

[Event "26th Hit Open-A 2022"]
[Site "Nova Gorica"]
[Date "2022.09.18"]
[Round "5.37"]
[White "Zlatanovic, Srdjan"]
[Black "Vah, Denis"]
[Result "0-1"]
[ECO "D02"]
[WhiteElo "1740"]
[BlackElo "1988"]
[Annotator "TA"]
[PlyCount "74"]
[EventDate "2022.09.16"]
[EventType "swiss"]
[EventCountry "SLO"]
[SourceTitle "playchess.com"]
[Source "ChessBase"]
[SourceQuality "1"]
[TimeControl "5400+30"]

{[%evp 16,74,-14,-14,-12,-8,-9,-16,-10,-16,-14,-39,-20,-22,-16,-24,-9,-26,-16,-30,-30,-31,-24,-51,-50,-48,-47,-60,-52,-47,0,0,0,-181,-109,-195,-75,-200,-139,-325,-223,-366,-189,-172,-108,-121,-110,-144,-104,-184,-184,-271,-270,-750,-737,-784,-775,-1170,-1163,-29993,-29994]} 1. d4 {[%emt 0:00:02]} d5 {[%emt 0:00:07]} 2. Nf3 {[%emt 0:00:09]} c5 {[%emt 0:00:03]} 3. c3 {[%emt 0:00:54]} Nc6 {[%emt 0:00:06]} 4. Bf4 {[%emt 0:00:17]} Nf6 {[%emt 0:00:11]} 5. e3 {[%emt 0:00:17]} Qb6 {[%emt 0:00:06]} 6. Qb3 {[%emt 0:00:25]} c4 {[%emt 0:00:05]} 7. Qc2 {[%emt 0:00:24]} Bf5 {[%emt 0:03:46]} 8. Qc1 {[%emt 0:09:27]} h6 {[%emt 0:00:07]} 9. Nbd2 {[%emt 0:00:13]} e6 {[%emt 0:00:31] D02: 1 d4 d5 2 Nf3 sidelines, including 2...Nf6 3 g3 and 2...Nf6 3 Bf4.} 10. Be2 {[%emt 0:01:42]} Be7 {[%emt 0:02:47]} 11. Ne5 {[%emt 0:01:08]} Nxe5 {[%emt 0:03:26] The position is equal.} 12. Bxe5 {[%emt 0:00:52]} O-O {[%emt 0:00:33] [#]} 13. Bf3 $146 {[%emt 0:00:10]} ({Predecessor:} 13. O-O Rfc8 14. f3 Qd8 15. Qe1 b5 16. e4 Bg6 17. Qg3 b4 18. Rae1 Nh5 19. Qh3 {1-0 (61) Doluhanova,E (2229)-Galyas,M (2476) Chess.com INT 2020}) 13... Qc6 {[%emt 0:07:20]} 14. O-O {[%emt 0:01:09]} b5 {[%emt 0:01:33]} (14... Bd3 {seems wilder.} 15. Re1 Ne4 16. a4 Bh4) 15. Re1 {[%emt 0:00:01]} Bd3 {[%emt 0:08:59]} 16. Be2 {[%emt 0:02:16]} (16. Bxf6 $5 Bxf6 17. e4 $15) 16... Bh7 {[%emt 0:01:35]} 17. Bf3 {[%emt 0:04:52]} Nd7 {[%emt 0:03:47]} 18. Bg3 {[%emt 0:01:33]} f5 {[%emt 0:02:58]} 19. Qd1 {[%emt 0:01:01]} a5 {[%emt 0:01:44]} 20. Qe2 {[%emt 0:00:59]} Ra6 {[%emt 0:05:36]} 21. Rec1 {[%emt 0:00:56]} g5 {[%emt 0:01:30]} 22. h3 $1 {[%emt 0:00:27]} Bd6 {[%emt 0:00:15]} (22... a4 $15) 23. Bxd6 $11 {[%emt 0:01:30]} Qxd6 {[%emt 0:00:04]} 24. g4 $2 {[%emt 0:01:13]} (24. a4 $11) 24... Nf6 {[%emt 0:02:53]} (24... fxg4 $19 25. Bxg4 Bd3) 25. Bg2 {[%emt 0:02:56]} (25. gxf5 $17 exf5 26. a4) 25... a4 {[%emt 0:12:33]} (25... fxg4 $19 {Strongly threatening ...Bd3.} 26. hxg4 Bd3) 26. a3 {[%emt 0:00:18]} (26. gxf5 $17 Bxf5 27. e4 dxe4 28. Nxe4 Nxe4 29. Bxe4) 26... Ra7 {[%emt 0:00:23] aiming for ...fxg4.} 27. Nf1 $2 {[%emt 0:07:25]} (27. gxf5 $17 Bxf5 28. e4 dxe4 29. Re1) 27... Raf7 {[%emt 0:02:30] [#] White must now prevent ...fxg4.} 28. f3 {[%emt 0:11:22]} (28. gxf5 {is a better defense.} Bxf5 29. f3) 28... Kh8 {[%emt 0:01:34]} (28... fxg4 $142 29. hxg4 Bd3) 29. Rd1 {[%emt 0:01:00]} Ng8 {[%emt 0:01:45]} ({Black should play} 29... h5 $19 {...fxg4 is the strong threat.} 30. gxh5 Rg8) 30. Rd2 {[%emt 0:00:38]} Ne7 {[%emt 0:01:04][%cal Bg8e7,Be7g6,Bg6h4][%mdl 32] Black is more active.} 31. Re1 {[%emt 0:01:39]} Ng6 {[%emt 0:01:34]} 32. Nh2 {[%emt 0:01:11]} (32. Bh1 $17) 32... Nh4 $19 {[%emt 0:06:54]} 33. Rf1 {[%emt 0:05:23]} (33. Qf2 {was called for.}) 33... fxg4 {[%emt 0:03:39]} 34. Nxg4 {[%emt 0:02:22]} (34. hxg4 Qc7 35. e4) 34... Bd3 {[%emt 0:00:33]} 35. Rxd3 {[%emt 0:00:04]} cxd3 {[%emt 0:00:04]} 36. Qxd3 {[%emt 0:00:01]} Qg3 {[%emt 0:01:29][%csl Gh4][%cal Rg3g2] [#]} 37. Rf2 {[%emt 0:02:05]} Rxf3 {[%emt 0:01:45] Weighted Error Value: White=1.05/Black=0.28 (precise)} 0-1

[Event "26th Hit Open-A 2022"]
[Site "Nova Gorica"]
[Date "2022.09.18"]
[Round "5.38"]
[White "Budai, Leonardo"]
[Black "Both, Aaron"]
[Result "1-0"]
[ECO "B43"]
[WhiteElo "1676"]
[BlackElo "1963"]
[Annotator "TA"]
[PlyCount "75"]
[EventDate "2022.09.16"]
[EventType "swiss"]
[EventCountry "SLO"]
[SourceTitle "playchess.com"]
[Source "ChessBase"]
[SourceQuality "1"]
[TimeControl "5400+30"]

{[%evp 13,75,18,35,0,27,0,4,-35,-50,-55,0,8,92,92,91,80,72,72,84,3,12,47,106,114,107,104,105,8,205,204,201,201,225,203,224,222,220,226,229,227,426,413,401,277,650,669,678,660,845,841,969,583,605,596,686,683,653,640,903,838,29985,29986,29984,29984]} 1. e4 {[%emt 0:00:02]} c5 {[%emt 0:00:06]} 2. Nf3 {[%emt 0:00:06]} e6 {[%emt 0:00:06]} 3. d4 {[%emt 0:00:08]} cxd4 {[%emt 0:00:05]} 4. Nxd4 {[%emt 0:00:12]} a6 {[%emt 0:00:06]} 5. Be2 {[%emt 0:01:25]} Nf6 {[%emt 0:00:24]} 6. Nc3 {[%emt 0:00:10]} Qc7 {[%emt 0:00:11]} 7. a3 {[%emt 0:07:49]} d6 {[%emt 0:01:52]} 8. O-O {[%emt 0:00:22] 8.0-0 is better than 8.Be3. B43: Sicilian: Kan Variation: 5 Nc3.} Nbd7 {[%emt 0:00:28]} 9. Nb3 {[%emt 0:00:49]} b5 {[%emt 0:00:51]} 10. Bf3 {[%emt 0:02:24][%cal Oe4e5] Black must now prevent e5! The position is equal.} Ne5 {[%emt 0:00:58] [#]} 11. Be2 $146 {[%emt 0:02:03]} ({Predecessor:} 11. Qe2 Bb7 12. Re1 Be7 13. h3 Rc8 14. Bg4 O-O 15. f4 Nc4 16. Bf3 Nxa3 17. bxa3 Qxc3 {0-1 (43) Ayala Trujillo,A-Pereda de Pablo,E (2167) La Laguna 2007}) 11... h5 {[%emt 0:02:21]} (11... Bb7 $15) 12. f4 {[%emt 0:04:40]} Neg4 {[%emt 0:01:39] [#]} (12... Nc4 $11 {remains equal.}) 13. h3 $1 $16 {[%emt 0:01:52]} Qb6+ {[%emt 0:00:18]} 14. Qd4 {[%emt 0:00:18]} Qxd4+ {[%emt 0:06:10]} 15. Nxd4 {[%emt 0:00:03]} Nh6 {[%emt 0:00:35]} 16. e5 {[%emt 0:32:58]} (16. f5 $16) 16... dxe5 $11 {[%emt 0:00:34]} 17. fxe5 {[%emt 0:00:11][%mdl 64] [#] Discovered Attack} Bc5 {[%emt 0:02:06]} (17... Nd7 $1 $14) 18. Be3 $36 {[%emt 0:07:23][%mdl 2048] White is on the roll.} ({Inferior is} 18. exf6 Bxd4+ 19. Kh2 gxf6 $15) 18... Nd5 {[%emt 0:07:03]} 19. Nxd5 {[%emt 0:00:44]} exd5 {[%emt 0:00:08]} 20. Bxh5 {[%emt 0:12:18] White is much more active.} (20. c3 $16) 20... g6 $2 {[%emt 0:09:10] This costs Black the game.} (20... Bxd4 $11 {and Black is okay.} 21. Bxd4 Nf5) 21. Bf3 $18 {[%emt 0:02:31]} Be6 {[%emt 0:01:25]} 22. c3 {[%emt 0:07:27]} Rc8 {[%emt 0:05:29]} 23. Rfd1 {[%emt 0:06:58]} Bxd4 {[%emt 0:02:11]} 24. Bxd4 {[%emt 0:00:22]} ({But not} 24. cxd4 Nf5 $16) 24... Nf5 {[%emt 0:01:25]} 25. Bf2 {[%emt 0:01:11]} Ne7 {[%emt 0:01:13]} 26. a4 {[%emt 0:03:10]} b4 $2 {[%emt 0:08:35]} (26... O-O 27. axb5 axb5) 27. cxb4 {[%emt 0:00:08]} Rc2 {[%emt 0:00:08]} 28. Bd4 {[%emt 0:01:43]} Bxh3 $2 {[%emt 0:01:25]} (28... Nf5 29. Bf2 O-O) 29. gxh3 {[%emt 0:00:27]} Rxh3 {[%emt 0:00:21]} 30. Ra3 {[%emt 0:02:33]} Nf5 {[%emt 0:06:23]} 31. Bxd5 {[%emt 0:02:04]} Rh4 {[%emt 0:01:17]} 32. Bf2 {[%emt 0:00:34]} Rg4+ {[%emt 0:00:48]} 33. Kf1 {[%emt 0:00:31] Bc5 is the strong threat.} Rf4 {[%emt 0:06:44]} 34. Rf3 {[%emt 0:00:32]} Rxb4 {[%emt 0:00:13]} 35. b3 {[%emt 0:00:16]} Nh6 {[%emt 0:05:37]} 36. Bc4 {[%emt 0:00:47]} Ng4 {[%emt 0:00:40]} 37. Bxf7+ {[%emt 0:00:28]} Ke7 {[%emt 0:00:24]} 38. Bh4+ {[%emt 0:00:11] Weighted Error Value: White=0.39/Black=0.49} 1-0

[Event "26th Hit Open-A 2022"]
[Site "Nova Gorica"]
[Date "2022.09.18"]
[Round "5.39"]
[White "Cokan, Mirko"]
[Black "Alexandrova, Angelina"]
[Result "0-1"]
[ECO "C01"]
[WhiteElo "1683"]
[BlackElo "1842"]
[Annotator "NA COMBH"]
[PlyCount "102"]
[EventDate "2022.09.16"]
[EventType "swiss"]
[EventCountry "SLO"]
[SourceTitle "playchess.com"]
[Source "ChessBase"]
[SourceQuality "1"]
[TimeControl "5400+30"]

1. d4 {[%emt 0:00:22]} e6 {[%emt 0:00:11]} 2. e4 {[%emt 0:00:36]} d5 {[%emt 0:00:05]} 3. Bd3 {[%emt 0:00:09]} dxe4 {[%emt 0:00:10]} 4. Bxe4 {[%emt 0:00:27]} Nf6 {[%emt 0:00:12]} 5. Bf3 {[%emt 0:02:05]} c5 {[%emt 0:00:12]} 6. Ne2 {[%emt 0:01:10]} Nc6 {[%emt 0:00:15]} 7. c3 {[%emt 0:02:31]} cxd4 {[%emt 0:01:59]} 8. Bxc6+ {[%emt 0:06:45]} bxc6 {[%emt 0:00:10]} 9. cxd4 {[%emt 0:00:48]} Bd6 {[%emt 0:02:40]} 10. Bg5 {[%emt 0:01:01]} O-O {[%emt 0:00:26]} 11. Nd2 {[%emt 0:02:52]} Ba6 {[%emt 0:04:55]} 12. a3 {[%emt 0:02:16]} Be7 {[%emt 0:06:11]} 13. Nf3 {[%emt 0:08:07]} Qa5+ {[%emt 0:01:58]} 14. b4 {[%emt 0:02:58]} Bxe2 {[%emt 0:04:04]} 15. Kxe2 {[%emt 0:03:48]} Qb6 {[%emt 0:01:55]} 16. Re1 {[%emt 0:02:40]} Ne4 {[%emt 0:02:52]} 17. Bd2 {[%emt 0:02:43]} Qb5+ {[%emt 0:00:19]} 18. Ke3 {[%emt 0:01:11]} Nd6 {[%emt 0:02:10]} 19. a4 {[%emt 0:08:29]} Nf5+ {[%emt 0:01:00]} 20. Kf4 {[%emt 0:00:41]} Bd6+ {[%emt 0:04:16]} 21. Kg4 {[%emt 0:01:16]} Qd5 {[%emt 0:03:28]} 22. g3 {[%emt 0:03:04]} Nxd4 {[%emt 0:06:12]} 23. Nxd4 {[%emt 0:02:39]} Qxd4+ {[%emt 0:00:23]} 24. Kh3 {[%emt 0:00:32]} Bxb4 {[%emt 0:01:46]} 25. Bxb4 {[%emt 0:00:52]} Qxb4 {[%emt 0:00:02]} 26. Qf3 {[%emt 0:00:39]} c5 {[%emt 0:02:10]} 27. Reb1 {[%emt 0:00:42]} Qd4 {[%emt 0:01:11]} 28. a5 {[%emt 0:00:51]} c4 {[%emt 0:05:02]} 29. Ra4 {[%emt 0:01:41]} Qd5 {[%emt 0:06:11]} 30. Kg2 {[%emt 0:03:26]} Rab8 {[%emt 0:03:50]} 31. Raa1 {[%emt 0:03:47]} Rxb1 {[%emt 0:01:36]} 32. Qxd5 {[%emt 0:01:04]} exd5 {[%emt 0:00:40]} 33. Rxb1 {[%emt 0:00:16]} c3 {[%emt 0:00:36]} 34. Kf3 {[%emt 0:01:39]} Re8 {[%emt 0:02:38]} 35. Rc1 {[%emt 0:03:18]} d4 {[%emt 0:01:00]} 36. h4 {[%emt 0:00:21]} g6 {[%emt 0:00:19]} 37. a6 {[%emt 0:01:18]} Re6 {[%emt 0:00:21]} 38. g4 {[%emt 0:00:36]} Rxa6 {[%emt 0:00:11]} 39. Ke4 {[%emt 0:00:27]} Rd6 {[%emt 0:00:20]} 40. Kd3 {[%emt 0:00:08]} Kf8 {[%emt 0:01:23]} 41. Kc2 {[%emt 0:03:12]} Ke7 {[%emt 0:00:35]} 42. Kd3 {[%emt 0:00:29]} Kd7 {[%emt 0:00:12]} 43. Ra1 {[%emt 0:01:02]} a6 {[%emt 0:00:08]} 44. Ra5 {[%emt 0:00:33]} Kc7 {[%emt 0:01:24]} 45. g5 {[%emt 0:01:51]} Kb6 {[%emt 0:00:31]} 46. Re5 {[%emt 0:00:42]} a5 {[%emt 0:01:51]} 47. Re1 {[%emt 0:01:42]} a4 {[%emt 0:00:28]} 48. Rc1 {[%emt 0:00:24]} Kc5 {[%emt 0:00:15]} 49. Ra1 {[%emt 0:01:56]} Ra6 {[%emt 0:00:23]} 50. f4 {[%emt 0:00:11]} a3 {[%emt 0:00:09]} 51. Ra2 {[%emt 0:02:01]} Kb4 {[%emt 0:00:31]} 0-1

[Event "26th Hit Open-A 2022"]
[Site "Nova Gorica"]
[Date "2022.09.18"]
[Round "5.40"]
[White "Zlatanovic, Marcus"]
[Black "Azinovic, Igor"]
[Result "1-0"]
[ECO "B53"]
[WhiteElo "1636"]
[BlackElo "1814"]
[Annotator "NA COMBH"]
[PlyCount "75"]
[EventDate "2022.09.16"]
[EventType "swiss"]
[EventCountry "SLO"]
[SourceTitle "playchess.com"]
[Source "ChessBase"]
[SourceQuality "1"]
[TimeControl "5400+30"]

1. e4 {[%emt 0:00:02]} c5 {[%emt 0:00:09]} 2. Nf3 {[%emt 0:00:09]} d6 {[%emt 0:00:10]} 3. d4 {[%emt 0:00:05]} cxd4 {[%emt 0:00:09]} 4. Qxd4 {[%emt 0:00:04]} Nc6 {[%emt 0:01:56]} 5. Bb5 {[%emt 0:00:06]} Bd7 {[%emt 0:00:24]} 6. Bxc6 {[%emt 0:00:07]} Bxc6 {[%emt 0:00:51]} 7. Nc3 {[%emt 0:00:26]} Nf6 {[%emt 0:01:00]} 8. Bg5 {[%emt 0:00:35]} Qc7 {[%emt 0:10:22]} 9. O-O-O {[%emt 0:00:14]} O-O-O {[%emt 0:01:10]} 10. Bxf6 {[%emt 0:00:24]} gxf6 {[%emt 0:00:25]} 11. Qxa7 {[%emt 0:00:07]} Rg8 {[%emt 0:01:00]} 12. Rhg1 {[%emt 0:00:21]} Bh6+ {[%emt 0:00:26]} 13. Kb1 {[%emt 0:00:08]} Bg7 {[%emt 0:02:43]} 14. Nd4 {[%emt 0:00:48]} f5 {[%emt 0:07:20]} 15. Nxc6 {[%emt 0:06:07]} Qxc6 {[%emt 0:00:12]} 16. Nd5 {[%emt 0:00:05]} Kd7 {[%emt 0:05:16]} 17. exf5 {[%emt 0:01:38]} e6 {[%emt 0:00:42]} 18. fxe6+ {[%emt 0:01:37]} fxe6 {[%emt 0:00:09]} 19. Nb4 {[%emt 0:00:36]} Qb5 {[%emt 0:01:30]} 20. c3 {[%emt 0:01:07]} Ra8 {[%emt 0:06:13]} 21. Qe3 {[%emt 0:00:09]} Rgc8 {[%emt 0:04:27]} 22. Qd3 {[%emt 0:00:47]} Qc5 {[%emt 0:01:26]} 23. Qxh7 {[%emt 0:01:07]} Qe5 {[%emt 0:00:41]} 24. Rge1 {[%emt 0:00:30]} Qf6 {[%emt 0:00:18]} 25. Qd3 {[%emt 0:00:42]} d5 {[%emt 0:03:07]} 26. Qb5+ {[%emt 0:00:35]} Kc7 {[%emt 0:02:57]} 27. Qe2 {[%emt 0:06:21]} Kd6 {[%emt 0:01:30]} 28. Qe3 {[%emt 0:02:54]} Rc4 {[%emt 0:04:20]} 29. Qb6+ {[%emt 0:01:44]} Ke7 {[%emt 0:00:30]} 30. Qxb7+ {[%emt 0:00:07]} Kf8 {[%emt 0:00:43]} 31. Qxa8+ {[%emt 0:00:09]} Kf7 {[%emt 0:00:10]} 32. Re3 {[%emt 0:02:28]} Kg6 {[%emt 0:03:03]} 33. Rg3+ {[%emt 0:00:56]} Kh6 {[%emt 0:00:48]} 34. Qb7 {[%emt 0:00:37]} d4 {[%emt 0:02:46]} 35. Qxg7+ {[%emt 0:00:11]} Qxg7 {[%emt 0:00:19]} 36. Rxg7 {[%emt 0:00:05]} Kxg7 {[%emt 0:00:11]} 37. Rxd4 {[%emt 0:00:03]} Rxd4 {[%emt 0:00:07]} 38. cxd4 {[%emt 0:00:04]} 1-0

[Event "26th Hit Open-A 2022"]
[Site "Nova Gorica"]
[Date "2022.09.18"]
[Round "5.41"]
[White "Juvan, Vid"]
[Black "Rigatti, Giorgio"]
[Result "1/2-1/2"]
[ECO "B52"]
[WhiteElo "1564"]
[BlackElo "1763"]
[Annotator "NA COMBH"]
[PlyCount "119"]
[EventDate "2022.09.16"]
[EventType "swiss"]
[EventCountry "SLO"]
[SourceTitle "playchess.com"]
[Source "ChessBase"]
[SourceQuality "1"]
[TimeControl "5400+30"]

1. e4 {[%emt 0:00:03]} c5 {[%emt 0:00:53]} 2. Nf3 {[%emt 0:00:10]} d6 {[%emt 0:00:07]} 3. Bb5+ {[%emt 0:00:09]} Bd7 {[%emt 0:00:08]} 4. Bxd7+ {[%emt 0:00:11]} Qxd7 {[%emt 0:00:10]} 5. O-O {[%emt 0:00:09]} Nf6 {[%emt 0:00:12]} 6. Qe2 {[%emt 0:00:11]} Nc6 {[%emt 0:00:22]} 7. c3 {[%emt 0:00:31]} e6 {[%emt 0:00:41]} 8. Rd1 {[%emt 0:00:34]} Be7 {[%emt 0:01:06]} 9. d4 {[%emt 0:00:14]} cxd4 {[%emt 0:00:13]} 10. cxd4 {[%emt 0:00:05]} d5 {[%emt 0:00:04]} 11. e5 {[%emt 0:00:51]} Ne4 {[%emt 0:00:09]} 12. Nbd2 {[%emt 0:02:13]} Nxd2 {[%emt 0:00:08]} 13. Bxd2 {[%emt 0:00:09]} h6 {[%emt 0:06:13]} 14. a3 {[%emt 0:00:55]} O-O {[%emt 0:00:25]} 15. Rac1 {[%emt 0:00:58]} Rfc8 {[%emt 0:01:09]} 16. Rc3 {[%emt 0:02:43]} Bf8 {[%emt 0:00:18]} 17. Be3 {[%emt 0:01:18]} Ne7 {[%emt 0:01:10]} 18. Rdc1 {[%emt 0:00:56]} Rxc3 {[%emt 0:01:47]} 19. Rxc3 {[%emt 0:00:08]} Rc8 {[%emt 0:01:47]} 20. Bd2 {[%emt 0:01:50]} Rxc3 {[%emt 0:00:29]} 21. Bxc3 {[%emt 0:00:06]} Qa4 {[%emt 0:01:32]} 22. Ne1 {[%emt 0:04:14]} Nc6 {[%emt 0:00:58]} 23. Qc2 {[%emt 0:02:40]} Qc4 {[%emt 0:12:12]} 24. Qd3 {[%emt 0:04:28]} Qb3 {[%emt 0:00:43]} 25. f4 {[%emt 0:03:11]} a6 {[%emt 0:00:47]} 26. Kf2 {[%emt 0:02:04]} Be7 {[%emt 0:01:26]} 27. f5 {[%emt 0:03:38]} exf5 {[%emt 0:02:05]} 28. Qxf5 {[%emt 0:01:22]} Bxa3 {[%emt 0:00:36]} 29. Qc2 {[%emt 0:01:52]} Qxc2+ {[%emt 0:00:40]} 30. Nxc2 {[%emt 0:00:05]} Bf8 {[%emt 0:01:47]} 31. Ne3 {[%emt 0:00:30]} b5 {[%emt 0:00:16]} 32. Nxd5 {[%emt 0:01:04]} b4 {[%emt 0:01:29]} 33. Bd2 {[%emt 0:01:31]} Nxd4 {[%emt 0:01:02]} 34. Nxb4 {[%emt 0:02:22]} a5 {[%emt 0:00:41]} 35. Nd3 {[%emt 0:06:15]} Nb3 {[%emt 0:04:52]} 36. Bc3 {[%emt 0:01:37]} a4 {[%emt 0:01:05]} 37. Bb4 {[%emt 0:02:29]} Bxb4 {[%emt 0:05:05]} 38. Nxb4 {[%emt 0:00:07]} Kf8 {[%emt 0:00:05]} 39. Nd5 {[%emt 0:02:55]} Nd2 {[%emt 0:00:36]} 40. Nc3 {[%emt 0:00:54]} Nc4 {[%emt 0:00:09]} 41. Nxa4 {[%emt 0:00:15]} Nxe5 {[%emt 0:00:07]} 42. h3 {[%emt 0:02:04]} Ke7 {[%emt 0:00:10]} 43. Ke3 {[%emt 0:00:27]} f5 {[%emt 0:03:33]} 44. b3 {[%emt 0:04:22]} g5 {[%emt 0:01:46]} 45. Nb6 {[%emt 0:03:16]} Nc6 {[%emt 0:02:37]} 46. Nc4 {[%emt 0:01:08]} Ke6 {[%emt 0:00:12]} 47. Kd3 {[%emt 0:01:28]} Kd5 {[%emt 0:05:46]} 48. Ne3+ {[%emt 0:00:20]} Ke5 {[%emt 0:00:08]} 49. Nc2 {[%emt 0:02:58]} Kf4 {[%emt 0:01:50]} 50. Ke2 {[%emt 0:03:01]} Kg3 {[%emt 0:03:40]} 51. Kf1 {[%emt 0:00:18]} f4 {[%emt 0:00:19]} 52. Ne1 {[%emt 0:02:45]} h5 {[%emt 0:00:25]} 53. Nf3 {[%emt 0:01:47]} g4 {[%emt 0:00:33]} 54. hxg4 {[%emt 0:00:40]} hxg4 {[%emt 0:00:03]} 55. Ng1 {[%emt 0:00:13]} Nd4 {[%emt 0:02:48]} 56. b4 {[%emt 0:00:32]} Kh2 {[%emt 0:01:43]} 57. b5 {[%emt 0:02:57]} Nxb5 {[%emt 0:00:23]} 58. Ne2 {[%emt 0:00:09]} f3 {[%emt 0:00:24]} 59. gxf3 gxf3 60. Kf2 1/2-1/2